[Event "*** Titled Tuesday Blitz"]
[Site "Chess.com"]
[Date "2020.02.04"]
[Round "5"]
[White "sergoy"]
[Black "Ginzburg_Yakov"]
[Result "1-0"]
[WhiteElo "2851"]
[BlackElo "2525"]
[TimeControl "180+2"]
[EndTime "10:05:46 PST"]
[Termination "sergoy won by resignation"]

1. e4 {[%clk 0:02:44.4]} 1... c5 {[%clk 0:03:00.1]} 2. Nf3 {[%clk 0:02:33.9]}
2... e6 {[%clk 0:03:01]} 3. d4 {[%clk 0:02:32.9]} 3... cxd4 {[%clk 0:03:02.1]}
4. Nxd4 {[%clk 0:02:34.8]} 4... Nc6 {[%clk 0:03:02.9]} 5. Nc3 {[%clk 0:02:35.8]}
5... Nf6 {[%clk 0:03:03.9]} 6. Nxc6 {[%clk 0:02:35.8]} 6... bxc6 {[%clk
0:03:04.7]} 7. e5 {[%clk 0:02:37.7]} 7... Nd5 {[%clk 0:03:05.8]} 8. Ne4 {[%clk
0:02:39.3]} 8... Qc7 {[%clk 0:03:06.2]} 9. f4 {[%clk 0:02:40.9]} 9... Qb6 {[%clk
0:03:08.1]} 10. c4 {[%clk 0:02:41.1]} 10... Ne3 {[%clk 0:03:03.5]} 11. Qd3
{[%clk 0:02:41.9]} 11... Bb4+ {[%clk 0:03:04]} 12. Bd2 {[%clk 0:02:42.6]} 12...
Nxf1 {[%clk 0:02:38.1]} 13. Rxf1 {[%clk 0:02:38.3]} 13... O-O {[%clk 0:02:39]}
14. O-O-O {[%clk 0:02:38.2]} 14... Rb8 {[%clk 0:02:24.9]} 15. Ng5 {[%clk
0:02:36.4]} 15... g6 {[%clk 0:02:20]} 16. g4 {[%clk 0:02:31.1]} 16... Be7 {[%clk
0:02:18.4]} 17. Bc3 {[%clk 0:02:28.4]} 17... Ba6 {[%clk 0:02:03.5]} 18. Ne4
{[%clk 0:02:22.6]} 18... Rfd8 {[%clk 0:01:53.7]} 19. h4 {[%clk 0:02:22.3]} 19...
Bb4 {[%clk 0:01:03.2]} 20. h5 {[%clk 0:02:14.6]} 20... Bxc3 {[%clk 0:01:03.6]}
21. Qxc3 {[%clk 0:02:13.2]} 21... Bxc4 {[%clk 0:01:04.2]} 22. Rh1 {[%clk
0:02:05.7]} 22... Bd5 {[%clk 0:00:48.8]} 23. Nf6+ {[%clk 0:02:05]} 23... Kf8
{[%clk 0:00:48.6]} 24. hxg6 {[%clk 0:02:05.9]} 24... Bxh1 {[%clk 0:00:47.3]} 25.
gxh7 {[%clk 0:01:47.7]} 25... Kg7 {[%clk 0:00:41.9]} 26. Rxh1 {[%clk 0:01:47.9]}
26... Qf2 {[%clk 0:00:42.4]} 27. Kb1 {[%clk 0:01:41]} 27... Qg2 {[%clk
0:00:24.5]} 28. Rd1 {[%clk 0:01:37.3]} 28... Qe2 {[%clk 0:00:19.6]} 29. Qd2
{[%clk 0:01:34.9]} 29... Qc4 {[%clk 0:00:10.7]} 30. f5 {[%clk 0:01:33.4]} 30...
Rh8 {[%clk 0:00:08.4]} 31. Qg5+ {[%clk 0:01:33]} 31... Kf8 {[%clk 0:00:09.7]}
32. Nxd7+ {[%clk 0:01:34.1]} 32... Ke8 {[%clk 0:00:10.8]} 33. Nxb8 {[%clk
0:01:35.3]} 33... Qe4+ {[%clk 0:00:10.5]} 34. Ka1 {[%clk 0:01:36]} 1-0

[Event "*** Titled Tuesday Blitz"]
[Site "Chess.com"]
[Date "2020.02.04"]
[Round "5"]
[White "WelshTiger"]
[Black "Harry_Rakkel"]
[Result "0-1"]
[WhiteElo "2288"]
[BlackElo "2539"]
[TimeControl "180+2"]
[EndTime "10:05:53 PST"]
[Termination "Harry_Rakkel won on time"]

1. e4 {[%clk 0:03:01.9]} 1... c5 {[%clk 0:03:00]} 2. Nf3 {[%clk 0:03:02.7]} 2...
d6 {[%clk 0:03:00.9]} 3. d4 {[%clk 0:03:03.5]} 3... cxd4 {[%clk 0:03:02]} 4.
Nxd4 {[%clk 0:03:04.6]} 4... Nf6 {[%clk 0:03:03.1]} 5. Nc3 {[%clk 0:03:05.6]}
5... a6 {[%clk 0:03:04.3]} 6. Be2 {[%clk 0:03:06.2]} 6... e5 {[%clk 0:03:04.3]}
7. Nf3 {[%clk 0:03:07.2]} 7... Be7 {[%clk 0:03:03.4]} 8. Bg5 {[%clk 0:03:07.1]}
8... Nbd7 {[%clk 0:03:03.5]} 9. a4 {[%clk 0:03:07.2]} 9... h6 {[%clk 0:03:04.2]}
10. Bh4 {[%clk 0:02:54.9]} 10... b6 {[%clk 0:03:02.2]} 11. Nd2 {[%clk
0:02:48.1]} 11... Bb7 {[%clk 0:03:01.5]} 12. Bc4 {[%clk 0:02:42]} 12... g5
{[%clk 0:02:37.6]} 13. Bg3 {[%clk 0:02:42.3]} 13... Nc5 {[%clk 0:02:38]} 14. f3
{[%clk 0:02:38.5]} 14... Ne6 {[%clk 0:02:30.9]} 15. Nf1 {[%clk 0:02:27]} 15...
h5 {[%clk 0:02:22.5]} 16. Ne3 {[%clk 0:02:24.9]} 16... h4 {[%clk 0:02:22.1]} 17.
Bf2 {[%clk 0:02:26]} 17... Nf4 {[%clk 0:02:20.9]} 18. O-O {[%clk 0:02:20.3]}
18... Rc8 {[%clk 0:02:16.6]} 19. Bb3 {[%clk 0:02:16.3]} 19... Rxc3 {[%clk
0:01:58]} 20. bxc3 {[%clk 0:02:16.2]} 20... g4 {[%clk 0:01:53.5]} 21. Nf5 {[%clk
0:02:06]} 21... gxf3 {[%clk 0:01:45.8]} 22. gxf3 {[%clk 0:02:04.1]} 22... Rg8+
{[%clk 0:01:43.7]} 23. Kh1 {[%clk 0:01:50.2]} 23... Nxe4 {[%clk 0:01:44.4]} 24.
Be3 {[%clk 0:01:08.6]} 24... Qc8 {[%clk 0:00:48.5]} 25. Bxf4 {[%clk 0:01:05.5]}
25... Qxf5 {[%clk 0:00:47.9]} 26. Be3 {[%clk 0:00:26.2]} 26... Nxc3 {[%clk
0:00:45.5]} 0-1

[Event "*** Titled Tuesday Blitz"]
[Site "Chess.com"]
[Date "2020.02.04"]
[Round "5"]
[White "BabyBoss31"]
[Black "mortngabriel"]
[Result "0-1"]
[WhiteElo "2194"]
[BlackElo "2408"]
[TimeControl "180+2"]
[EndTime "10:05:53 PST"]
[Termination "mortngabriel won by resignation"]

1. d4 {[%clk 0:03:01.9]} 1... Nf6 {[%clk 0:03:00.6]} 2. c4 {[%clk 0:03:03.1]}
2... e6 {[%clk 0:03:00.7]} 3. Nf3 {[%clk 0:03:03.8]} 3... b6 {[%clk 0:03:00.7]}
4. a3 {[%clk 0:03:05.1]} 4... Ba6 {[%clk 0:03:01.5]} 5. Qc2 {[%clk 0:02:59.2]}
5... Bb7 {[%clk 0:03:02.5]} 6. Bg5 {[%clk 0:02:54.2]} 6... c5 {[%clk 0:02:59.1]}
7. Nc3 {[%clk 0:02:52]} 7... cxd4 {[%clk 0:02:59]} 8. Nxd4 {[%clk 0:02:53.9]}
8... Be7 {[%clk 0:02:57.6]} 9. Rd1 {[%clk 0:02:54]} 9... d6 {[%clk 0:02:52]} 10.
Ndb5 {[%clk 0:02:49.5]} 10... a6 {[%clk 0:02:51.4]} 11. Bxf6 {[%clk 0:02:48.4]}
11... gxf6 {[%clk 0:02:53.2]} 12. Nd4 {[%clk 0:02:49.8]} 12... Nd7 {[%clk
0:02:50.2]} 13. e3 {[%clk 0:02:47]} 13... Rc8 {[%clk 0:02:50.1]} 14. Be2 {[%clk
0:02:41.2]} 14... Bxg2 {[%clk 0:02:44.6]} 15. Rg1 {[%clk 0:02:41.5]} 15... Bb7
{[%clk 0:02:38.4]} 16. Bh5 {[%clk 0:02:42.4]} 16... Kf8 {[%clk 0:02:29.9]} 17.
Ne4 {[%clk 0:01:58.3]} 17... b5 {[%clk 0:02:27.8]} 18. Nxe6+ {[%clk 0:01:46.1]}
18... fxe6 {[%clk 0:02:27.4]} 19. Nxd6 {[%clk 0:01:47.3]} 19... Bxd6 {[%clk
0:02:04.9]} 20. Rxd6 {[%clk 0:01:49.2]} 20... Qe7 {[%clk 0:02:01.2]} 21. Qd2
{[%clk 0:01:43.6]} 21... Ne5 {[%clk 0:01:56.8]} 22. e4 {[%clk 0:01:14]} 22... h6
{[%clk 0:01:40.2]} 23. Qb4 {[%clk 0:00:30.8]} 23... Bxe4 {[%clk 0:00:53.6]} 24.
Ke2 {[%clk 0:00:17.5]} 24... a5 {[%clk 0:00:54.4]} 25. Rc6 {[%clk 0:00:03.9]}
25... Bxc6 {[%clk 0:00:46.7]} 26. Qxe7+ {[%clk 0:00:05]} 26... Kxe7 {[%clk
0:00:47.6]} 27. Rg7+ {[%clk 0:00:06.9]} 27... Kd6 {[%clk 0:00:49]} 0-1

[Event "*** Titled Tuesday Blitz"]
[Site "Chess.com"]
[Date "2020.02.04"]
[Round "5"]
[White "WPWPWP-2015"]
[Black "Korona_91"]
[Result "0-1"]
[WhiteElo "2534"]
[BlackElo "2410"]
[TimeControl "180+2"]
[EndTime "10:05:55 PST"]
[Termination "Korona_91 won by resignation"]

1. e4 {[%clk 0:03:01.3]} 1... e6 {[%clk 0:03:00.1]} 2. d4 {[%clk 0:03:01.2]}
2... d5 {[%clk 0:03:01.4]} 3. Nc3 {[%clk 0:03:02.5]} 3... Bb4 {[%clk 0:03:01.6]}
4. a3 {[%clk 0:03:02.1]} 4... Bxc3+ {[%clk 0:03:01.1]} 5. bxc3 {[%clk 0:03:03]}
5... dxe4 {[%clk 0:03:00.3]} 6. Qg4 {[%clk 0:03:03.3]} 6... Nf6 {[%clk
0:03:01.3]} 7. Qxg7 {[%clk 0:03:03.4]} 7... Rg8 {[%clk 0:03:02.8]} 8. Qh6 {[%clk
0:03:04.5]} 8... Rg6 {[%clk 0:03:02.1]} 9. Qe3 {[%clk 0:03:04.7]} 9... c5 {[%clk
0:02:57]} 10. dxc5 {[%clk 0:03:04.2]} 10... Nc6 {[%clk 0:02:53.3]} 11. h3 {[%clk
0:03:04.7]} 11... e5 {[%clk 0:02:54.4]} 12. Ne2 {[%clk 0:03:03]} 12... Be6
{[%clk 0:02:47.8]} 13. g4 {[%clk 0:03:00.1]} 13... h5 {[%clk 0:02:41.6]} 14.
gxh5 {[%clk 0:02:57]} 14... Nxh5 {[%clk 0:02:41.9]} 15. Qxe4 {[%clk 0:02:53.2]}
15... Bd5 {[%clk 0:02:39.4]} 16. Qf5 {[%clk 0:02:49.5]} 16... Ng7 {[%clk
0:02:31.4]} 17. Qxg6 {[%clk 0:02:30]} 17... fxg6 {[%clk 0:02:31.7]} 18. Rg1
{[%clk 0:02:31.2]} 18... Be4 {[%clk 0:02:33.2]} 19. Bh6 {[%clk 0:02:20.5]} 19...
Ne6 {[%clk 0:02:26.5]} 20. Ng3 {[%clk 0:02:02.5]} 20... Bxc2 {[%clk 0:01:58.2]}
21. Rc1 {[%clk 0:02:02.3]} 21... Qh4 {[%clk 0:01:42.7]} 22. Be3 {[%clk
0:01:55.4]} 22... Bf5 {[%clk 0:01:38.9]} 23. Bg2 {[%clk 0:01:08.2]} 23... O-O-O
{[%clk 0:01:29.8]} 24. Bf3 {[%clk 0:00:55]} 24... Nf4 {[%clk 0:01:24.5]} 25.
Nxf5 {[%clk 0:00:48.7]} 25... gxf5 {[%clk 0:01:20.6]} 26. Rb1 {[%clk 0:00:46.6]}
26... e4 {[%clk 0:01:16.6]} 27. Bd1 {[%clk 0:00:39]} 27... Nd3+ {[%clk
0:01:15.7]} 28. Ke2 {[%clk 0:00:30.9]} 28... Qh5+ {[%clk 0:01:15.3]} 29. Kd2
{[%clk 0:00:27.7]} 29... Nxf2+ {[%clk 0:01:02.5]} 30. Kc2 {[%clk 0:00:28.1]}
30... Nxd1 {[%clk 0:01:03.7]} 0-1

[Event "*** Titled Tuesday Blitz"]
[Site "Chess.com"]
[Date "2020.02.04"]
[Round "5"]
[White "Rodchenkov_Vitalij"]
[Black "Atakishiyev04"]
[Result "1/2-1/2"]
[WhiteElo "2603"]
[BlackElo "2789"]
[TimeControl "180+2"]
[EndTime "10:06:03 PST"]
[Termination "Game drawn by repetition"]

1. Nf3 {[%clk 0:03:01.9]} 1... Nf6 {[%clk 0:02:59.3]} 2. c4 {[%clk 0:03:01]}
2... g6 {[%clk 0:02:52.6]} 3. b4 {[%clk 0:03:01.3]} 3... Bg7 {[%clk 0:02:47]} 4.
Bb2 {[%clk 0:03:02.2]} 4... O-O {[%clk 0:02:34.1]} 5. e3 {[%clk 0:03:02.4]} 5...
d5 {[%clk 0:02:30.6]} 6. cxd5 {[%clk 0:02:57.5]} 6... Nxd5 {[%clk 0:02:32.5]} 7.
Bxg7 {[%clk 0:02:58.1]} 7... Kxg7 {[%clk 0:02:34.4]} 8. Qb3 {[%clk 0:02:58.7]}
8... Nc6 {[%clk 0:02:27.6]} 9. a3 {[%clk 0:02:57.6]} 9... Bg4 {[%clk 0:02:19.7]}
10. Be2 {[%clk 0:02:55.4]} 10... a6 {[%clk 0:02:20.3]} 11. Qb2+ {[%clk
0:02:53.1]} 11... Kg8 {[%clk 0:02:17.6]} 12. O-O {[%clk 0:02:50.4]} 12... Qd7
{[%clk 0:02:13.9]} 13. d4 {[%clk 0:02:45.8]} 13... Bxf3 {[%clk 0:01:59.1]} 14.
Bxf3 {[%clk 0:02:46.1]} 14... e6 {[%clk 0:01:48.6]} 15. Nd2 {[%clk 0:02:46.1]}
15... Rfd8 {[%clk 0:01:43.9]} 16. Rac1 {[%clk 0:02:43.7]} 16... a5 {[%clk
0:01:33.9]} 17. b5 {[%clk 0:02:36.1]} 17... Nce7 {[%clk 0:01:34.4]} 18. Ne4
{[%clk 0:02:31.8]} 18... b6 {[%clk 0:01:33.9]} 19. Rc2 {[%clk 0:02:29.1]} 19...
Rac8 {[%clk 0:01:34.5]} 20. Rfc1 {[%clk 0:02:28.7]} 20... h6 {[%clk 0:01:33.1]}
21. h3 {[%clk 0:02:27.5]} 21... Kg7 {[%clk 0:01:30]} 22. Nc3 {[%clk 0:02:26.8]}
22... h5 {[%clk 0:01:28.4]} 23. Ne4 {[%clk 0:02:16.8]} 23... Nf5 {[%clk
0:01:24.2]} 24. Nd2 {[%clk 0:02:16.5]} 24... Nd6 {[%clk 0:01:23.6]} 25. Bxd5
{[%clk 0:01:56.2]} 25... exd5 {[%clk 0:01:17.8]} 26. Rc6 {[%clk 0:01:56.8]}
26... f6 {[%clk 0:01:14.6]} 27. a4 {[%clk 0:01:50.1]} 27... Qf7 {[%clk
0:01:08.3]} 28. Qc3 {[%clk 0:01:40.8]} 28... Rd7 {[%clk 0:01:07.1]} 29. Qa3
{[%clk 0:01:37.4]} 29... g5 {[%clk 0:00:56.3]} 30. R1c3 {[%clk 0:01:35.9]} 30...
Re8 {[%clk 0:00:53.5]} 31. Qc1 {[%clk 0:01:24.9]} 31... Ree7 {[%clk 0:00:37.5]}
32. Qd1 {[%clk 0:01:25.3]} 32... h4 {[%clk 0:00:37.2]} 33. Qg4 {[%clk
0:01:22.6]} 33... Qg6 {[%clk 0:00:35.9]} 34. Qd1 {[%clk 0:01:17.6]} 34... Qf7
{[%clk 0:00:35.2]} 35. Qc2 {[%clk 0:01:17]} 35... Qg6 {[%clk 0:00:31.3]} 36. Qd1
{[%clk 0:01:17.2]} 36... Qf7 {[%clk 0:00:24.4]} 1/2-1/2

[Event "*** Titled Tuesday Blitz"]
[Site "Chess.com"]
[Date "2020.02.04"]
[Round "5"]
[White "platy3"]
[Black "LastGladiator1"]
[Result "0-1"]
[WhiteElo "2903"]
[BlackElo "2847"]
[TimeControl "180+2"]
[EndTime "10:06:05 PST"]
[Termination "LastGladiator1 won by resignation"]

1. e4 {[%clk 0:03:00.8]} 1... e6 {[%clk 0:02:59.4]} 2. d4 {[%clk 0:03:01.2]}
2... d5 {[%clk 0:02:59.1]} 3. Nc3 {[%clk 0:03:01.7]} 3... Bb4 {[%clk 0:02:58.1]}
4. e5 {[%clk 0:03:02.4]} 4... b6 {[%clk 0:02:56.8]} 5. a3 {[%clk 0:02:59.7]}
5... Bf8 {[%clk 0:02:57.2]} 6. f4 {[%clk 0:02:51.9]} 6... Nh6 {[%clk 0:02:53.6]}
7. Nf3 {[%clk 0:02:51.7]} 7... c5 {[%clk 0:02:51.4]} 8. Bb5+ {[%clk 0:02:48.1]}
8... Bd7 {[%clk 0:02:52.1]} 9. Be2 {[%clk 0:02:48]} 9... Nf5 {[%clk 0:02:52.5]}
10. g4 {[%clk 0:02:30]} 10... Nxd4 {[%clk 0:02:50.1]} 11. Nxd4 {[%clk
0:02:15.6]} 11... Qh4+ {[%clk 0:02:49.2]} 12. Kf1 {[%clk 0:02:16.9]} 12... cxd4
{[%clk 0:02:50.3]} 13. Nb5 {[%clk 0:02:13.3]} 13... Qh3+ {[%clk 0:02:40.6]} 14.
Kf2 {[%clk 0:01:56.4]} 14... Bc5 {[%clk 0:02:32.2]} 15. Qd3 {[%clk 0:01:56.9]}
15... Qxd3 {[%clk 0:02:30.2]} 16. Bxd3 {[%clk 0:01:56.9]} 16... Bxb5 {[%clk
0:02:31.3]} 17. Bxb5+ {[%clk 0:01:57.6]} 17... Kd8 {[%clk 0:02:32.9]} 18. b4
{[%clk 0:01:53.8]} 18... Be7 {[%clk 0:02:32.1]} 19. Bb2 {[%clk 0:01:54.2]} 19...
a6 {[%clk 0:02:30.1]} 20. Be2 {[%clk 0:01:43.3]} 20... Nc6 {[%clk 0:02:30.2]}
21. Rhd1 {[%clk 0:01:29.4]} 21... Kc8 {[%clk 0:02:20.4]} 22. Bxd4 {[%clk
0:01:17.3]} 22... Nxd4 {[%clk 0:02:17.1]} 23. Rxd4 {[%clk 0:01:19.2]} 23... a5
{[%clk 0:02:14.2]} 24. Rb1 {[%clk 0:01:06.9]} 24... Rf8 {[%clk 0:02:09.2]} 25.
c4 {[%clk 0:01:04.1]} 25... axb4 {[%clk 0:02:00.8]} 26. axb4 {[%clk 0:01:05.2]}
26... f6 {[%clk 0:01:53.2]} 27. cxd5 {[%clk 0:01:05.7]} 27... fxe5 {[%clk
0:01:51.1]} 28. Rc4+ {[%clk 0:01:06.5]} 28... Kd7 {[%clk 0:01:41.5]} 29. dxe6+
{[%clk 0:01:04.5]} 29... Kxe6 {[%clk 0:01:41.6]} 30. f5+ {[%clk 0:01:05.6]}
30... Kf7 {[%clk 0:01:40.1]} 31. Rc6 {[%clk 0:01:05.3]} 31... Rfc8 {[%clk
0:01:29.8]} 32. Rbc1 {[%clk 0:00:30.6]} 32... Bc5+ {[%clk 0:01:27.3]} 33. bxc5
{[%clk 0:00:24.3]} 33... Rxc6 {[%clk 0:01:26.2]} 34. Bf3 {[%clk 0:00:06.8]}
34... Ra2+ {[%clk 0:01:19.1]} 35. Kg1 {[%clk 0:00:07.8]} 35... Rxc5 {[%clk
0:01:19.1]} 36. Rxc5 {[%clk 0:00:08]} 36... Ra1+ {[%clk 0:01:20.7]} 0-1

[Event "*** Titled Tuesday Blitz"]
[Site "Chess.com"]
[Date "2020.02.04"]
[Round "5"]
[White "DDTerziev04"]
[Black "RojonR"]
[Result "0-1"]
[WhiteElo "2207"]
[BlackElo "2432"]
[TimeControl "180+2"]
[EndTime "10:06:25 PST"]
[Termination "RojonR won on time"]

1. e4 {[%clk 0:03:01.9]} 1... e5 {[%clk 0:03:00.6]} 2. Nf3 {[%clk 0:03:02.7]}
2... Nc6 {[%clk 0:03:01.2]} 3. Bc4 {[%clk 0:03:04.1]} 3... Nf6 {[%clk
0:02:59.8]} 4. O-O {[%clk 0:03:02.4]} 4... h6 {[%clk 0:02:59.2]} 5. d3 {[%clk
0:03:02.1]} 5... d6 {[%clk 0:02:59]} 6. Nbd2 {[%clk 0:02:58.1]} 6... g5 {[%clk
0:02:57.4]} 7. c3 {[%clk 0:02:55]} 7... Bg7 {[%clk 0:02:57.7]} 8. Re1 {[%clk
0:02:54.6]} 8... g4 {[%clk 0:02:58.4]} 9. Nh4 {[%clk 0:02:54]} 9... Nxe4 {[%clk
0:02:57.3]} 10. Nxe4 {[%clk 0:02:39.1]} 10... Qxh4 {[%clk 0:02:56.9]} 11. d4
{[%clk 0:02:39.5]} 11... O-O {[%clk 0:02:52]} 12. d5 {[%clk 0:02:33.4]} 12...
Ne7 {[%clk 0:02:35.8]} 13. g3 {[%clk 0:02:33]} 13... Qh5 {[%clk 0:02:36.4]} 14.
h4 {[%clk 0:02:05.5]} 14... f5 {[%clk 0:02:32.9]} 15. Nc5 {[%clk 0:02:00.5]}
15... Kh8 {[%clk 0:02:24.2]} 16. Ne6 {[%clk 0:01:56.1]} 16... Bxe6 {[%clk
0:02:24.5]} 17. dxe6 {[%clk 0:01:58]} 17... Rad8 {[%clk 0:02:24.5]} 18. Qb3
{[%clk 0:01:39.3]} 18... f4 {[%clk 0:02:25.2]} 19. Qxb7 {[%clk 0:01:28]} 19...
fxg3 {[%clk 0:02:24.4]} 20. fxg3 {[%clk 0:01:28.6]} 20... Nf5 {[%clk 0:02:05.9]}
21. Qg2 {[%clk 0:01:18.7]} 21... c6 {[%clk 0:01:45.1]} 22. Bd3 {[%clk
0:01:16.5]} 22... Rde8 {[%clk 0:01:43]} 23. Bxf5 {[%clk 0:01:17]} 23... Qxf5
{[%clk 0:01:42.3]} 24. Be3 {[%clk 0:01:16.8]} 24... Qxe6 {[%clk 0:01:40.5]} 25.
Bxa7 {[%clk 0:01:06.5]} 25... Rf3 {[%clk 0:01:32.8]} 26. Rf1 {[%clk 0:01:05.2]}
26... e4 {[%clk 0:01:32.2]} 27. Bd4 {[%clk 0:01:01.1]} 27... Bxd4+ {[%clk
0:01:29.6]} 28. cxd4 {[%clk 0:01:03]} 28... Ref8 {[%clk 0:01:30.7]} 29. Rae1
{[%clk 0:00:35.5]} 29... e3 {[%clk 0:01:15.5]} 30. b3 {[%clk 0:00:29]} 30... Qe4
{[%clk 0:01:14.3]} 31. d5 {[%clk 0:00:20]} 31... cxd5 {[%clk 0:01:12.9]} 32.
Qb2+ {[%clk 0:00:19.3]} 32... d4 {[%clk 0:01:13.4]} 33. Qg2 {[%clk 0:00:02.7]}
33... Kg7 {[%clk 0:00:55.1]} 0-1

[Event "*** Titled Tuesday Blitz"]
[Site "Chess.com"]
[Date "2020.02.04"]
[Round "5"]
[White "VincentKeymer"]
[Black "NiranjanNavalgund"]
[Result "1/2-1/2"]
[WhiteElo "2691"]
[BlackElo "2418"]
[TimeControl "180+2"]
[EndTime "10:06:28 PST"]
[Termination "Game drawn by agreement"]

1. c4 {[%clk 0:03:01.9]} 1... e6 {[%clk 0:02:58.1]} 2. Nc3 {[%clk 0:03:02.3]}
2... d5 {[%clk 0:02:55.5]} 3. d4 {[%clk 0:03:02.4]} 3... c5 {[%clk 0:02:56.6]}
4. cxd5 {[%clk 0:03:01.5]} 4... exd5 {[%clk 0:02:58.5]} 5. Nf3 {[%clk 0:03:01]}
5... Nc6 {[%clk 0:02:59]} 6. g3 {[%clk 0:02:52.9]} 6... Nf6 {[%clk 0:02:59.4]}
7. Bg2 {[%clk 0:02:53.9]} 7... cxd4 {[%clk 0:03:00.2]} 8. Nxd4 {[%clk
0:02:54.3]} 8... Bc5 {[%clk 0:03:01.4]} 9. Nb3 {[%clk 0:02:26.7]} 9... Bb6
{[%clk 0:03:02.1]} 10. O-O {[%clk 0:02:27.8]} 10... d4 {[%clk 0:02:45.2]} 11.
Na4 {[%clk 0:02:27.2]} 11... O-O {[%clk 0:02:45.9]} 12. Bg5 {[%clk 0:02:24.1]}
12... Re8 {[%clk 0:02:46.2]} 13. Nxb6 {[%clk 0:02:22.3]} 13... axb6 {[%clk
0:02:48.1]} 14. Re1 {[%clk 0:02:00.5]} 14... h6 {[%clk 0:02:37.9]} 15. Bxc6
{[%clk 0:01:53.7]} 15... bxc6 {[%clk 0:02:37.8]} 16. Bxf6 {[%clk 0:01:55]} 16...
Qxf6 {[%clk 0:02:39.1]} 17. Qxd4 {[%clk 0:01:56.1]} 17... Qd8 {[%clk 0:02:40.1]}
18. Qxd8 {[%clk 0:01:18.9]} 18... Rxd8 {[%clk 0:02:40.7]} 19. e3 {[%clk
0:01:19.4]} 19... c5 {[%clk 0:02:39.7]} 20. Kf1 {[%clk 0:00:55.9]} 20... Ba6+
{[%clk 0:02:36.1]} 21. Kg2 {[%clk 0:00:56.4]} 21... Bc4 {[%clk 0:02:33.7]} 22.
Rec1 {[%clk 0:00:56.7]} 22... Bxb3 {[%clk 0:02:13.7]} 23. axb3 {[%clk
0:00:56.7]} 23... Rxa1 {[%clk 0:02:15.6]} 24. Rxa1 {[%clk 0:00:57.7]} 24... Rd3
{[%clk 0:02:16.9]} 25. Ra3 {[%clk 0:00:56.7]} 25... h5 {[%clk 0:02:07.3]} 26. b4
{[%clk 0:00:49]} 26... Rd2 {[%clk 0:02:03]} 27. bxc5 {[%clk 0:00:44.6]} 27...
bxc5 {[%clk 0:02:04.9]} 28. Rb3 {[%clk 0:00:45.1]} 28... g6 {[%clk 0:02:00.9]}
29. h3 {[%clk 0:00:43.3]} 29... Kg7 {[%clk 0:02:01.3]} 30. Kf3 {[%clk
0:00:42.6]} 30... c4 {[%clk 0:02:01.1]} 31. Rb4 {[%clk 0:00:42.5]} 31... Rc2
{[%clk 0:02:02.3]} 32. e4 {[%clk 0:00:39.6]} 32... c3 {[%clk 0:02:02.5]} 33.
bxc3 {[%clk 0:00:35]} 33... Rxc3+ {[%clk 0:02:04.4]} 34. Kg2 {[%clk 0:00:33.4]}
34... Kf6 {[%clk 0:02:03.7]} 35. h4 {[%clk 0:00:32.9]} 35... Ke5 {[%clk
0:02:03.6]} 36. Ra4 {[%clk 0:00:23.8]} 36... Rb3 {[%clk 0:02:03.9]} 37. Ra7
{[%clk 0:00:18.7]} 37... Kf6 {[%clk 0:01:58.2]} 38. Ra5 {[%clk 0:00:17.6]} 38...
Rc3 {[%clk 0:01:57.7]} 39. Kf1 {[%clk 0:00:18.3]} 39... Rc4 {[%clk 0:01:57.5]}
40. e5+ {[%clk 0:00:18.1]} 40... Kf5 {[%clk 0:01:58]} 41. Kg2 {[%clk 0:00:18.1]}
41... Re4 {[%clk 0:01:55.8]} 42. f4 {[%clk 0:00:19.4]} 42... Re3 {[%clk
0:01:43.3]} 43. Kf2 {[%clk 0:00:17.2]} 43... Rb3 {[%clk 0:01:44]} 44. e6+ {[%clk
0:00:15.9]} 44... Kxe6 {[%clk 0:01:44.6]} 45. Re5+ {[%clk 0:00:16.4]} 1/2-1/2

[Event "*** Titled Tuesday Blitz"]
[Site "Chess.com"]
[Date "2020.02.04"]
[Round "5"]
[White "Kimster98"]
[Black "vovachesss"]
[Result "1-0"]
[WhiteElo "2705"]
[BlackElo "2573"]
[TimeControl "180+2"]
[EndTime "10:06:32 PST"]
[Termination "Kimster98 won on time"]

1. d4 {[%clk 0:03:01.9]} 1... Nf6 {[%clk 0:02:55.2]} 2. c4 {[%clk 0:03:02.7]}
2... g6 {[%clk 0:02:50.6]} 3. g3 {[%clk 0:03:02.7]} 3... c6 {[%clk 0:02:51.2]}
4. Bg2 {[%clk 0:03:01]} 4... d5 {[%clk 0:02:52.7]} 5. Qa4 {[%clk 0:03:02.2]}
5... Nbd7 {[%clk 0:02:29.5]} 6. cxd5 {[%clk 0:03:01.7]} 6... cxd5 {[%clk
0:02:31.4]} 7. Nc3 {[%clk 0:03:00.3]} 7... Bg7 {[%clk 0:02:28.7]} 8. e3 {[%clk
0:02:08.2]} 8... O-O {[%clk 0:02:24.9]} 9. Nge2 {[%clk 0:02:08.8]} 9... Nb6
{[%clk 0:02:21.9]} 10. Qd1 {[%clk 0:01:45.8]} 10... Bf5 {[%clk 0:02:21]} 11. b3
{[%clk 0:01:44.5]} 11... Rc8 {[%clk 0:02:21]} 12. Bb2 {[%clk 0:01:45.4]} 12...
Qd7 {[%clk 0:02:20.2]} 13. O-O {[%clk 0:01:45.9]} 13... Rc7 {[%clk 0:02:06.3]}
14. Rc1 {[%clk 0:01:45.2]} 14... Rfc8 {[%clk 0:02:07.5]} 15. Qd2 {[%clk
0:01:41.4]} 15... h5 {[%clk 0:02:04.8]} 16. Nf4 {[%clk 0:01:39.6]} 16... e6
{[%clk 0:01:10.8]} 17. Nd3 {[%clk 0:01:29.8]} 17... Bf8 {[%clk 0:01:00.1]} 18.
Ne5 {[%clk 0:01:30.4]} 18... Qe8 {[%clk 0:00:54.1]} 19. f3 {[%clk 0:01:29.9]}
19... a5 {[%clk 0:00:34.5]} 20. e4 {[%clk 0:01:13.4]} 20... dxe4 {[%clk
0:00:07.4]} 21. fxe4 {[%clk 0:01:15.3]} 21... Bb4 {[%clk 0:00:07.4]} 22. exf5
{[%clk 0:01:11.9]} 22... Nbd5 {[%clk 0:00:04.6]} 23. fxg6 {[%clk 0:01:06.1]}
23... fxg6 {[%clk 0:00:04.2]} 24. Bxd5 {[%clk 0:00:47.9]} 24... Nxd5 {[%clk
0:00:04.4]} 25. Nxd5 {[%clk 0:00:29.7]} 25... exd5 {[%clk 0:00:03.1]} 26. Qg5
{[%clk 0:00:25]} 26... Rc2 {[%clk 0:00:02.4]} 27. Nxg6 {[%clk 0:00:15.1]} 1-0